Cogmind - Beta 15 @@@ ROGUE MODE // 2025.06.07 @ 23:41:00 Player: Sen Result: Destroyed by as-91832 with Assembled Blade Performance ------------- Evolutions (0) 0 Regions Visited (4) 800 Robots Destroyed (4) 20 Value Destroyed (107) 107 Prototype IDs (23) 460 Alien Tech Used (0) 0 Bonus (385) 385 TOTAL SCORE: 1772 Bonus ------- Follower Combat Kills 85 Aligned with FarCom 300 Cogmind --------- Core Integrity 0/250 Matter 300/300 Energy 245/250 System Corruption 5% Temperature Cool (14) Movement Rolling (115) Ox1 Location -9/Mines Parts ------- > --- POWER (1) -------- Ion Engine > --- PROPULSION (2) --- Compact Wheel > --- UTILITY (2) ------ Medium Storage Unit > --- WEAPON (2) ------- Particle Cannon > --- INVENTORY (10) --- Light Ion Engine VTOL Module VTOL Module VTOL Module VTOL Module Peak State ------------ > --- POWER ------------ Light Ion Engine > --- PROPULSION ------- Aluminum Leg Compact Wheel > --- UTILITY ---------- Medium Storage Unit Propulsion Shielding > --- WEAPON ----------- Light Assault Rifle Field Lobotomy Kit > --- INVENTORY -------- Ion Engine Light Ion Engine Aluminum Leg VTOL Module VTOL Module VTOL Module VTOL Module Light Cannon Mining Laser [Rating: 17] Favorites ----------- Power Light Ion Engine Engine Light Ion Engine Propulsion Aluminum Leg Leg Aluminum Leg Wheel Compact Wheel Utility Medium Storage Unit Storage Medium Storage Unit Protection Propulsion Shielding Weapon Light Assault Rifle Energy Gun Medium Laser Energy Cannon Particle Cannon Ballistic Gun Light Assault Rifle Ballistic Cannon Light Cannon Special Weapon Field Lobotomy Kit Build | -11 -10 -10 -10 -9 ------- Run | Yrd Mat Min Exi Min Slots Evolved . | . . . . . Power . | . . . . . Propulsion . | . . . . . Utility . | . . . . . Weapon . | . . . . . Parts Attached 15 | 6 2 1 2 4 Power 2 | 1 . . . 1 Engine 2 | 1 . . . 1 Core . | . . . . . Reactor . | . . . . . Propulsion 4 | 2 . . 1 1 Treads . | . . . . . Leg 3 | 2 . . . 1 Wheel 1 | . . . 1 . Hover . | . . . . . Flight . | . . . . . Utility 3 | 1 1 1 . . Device . | . . . . . Storage 2 | 1 1 . . . Processor . | . . . . . Hackware . | . . . . . Protection 1 | . . 1 . . Artifact . | . . . . . Weapon 6 | 2 1 . 1 2 Energy Gun 1 | 1 . . . . Energy Cannon 1 | . . . . 1 Ballistic Gun 1 | 1 . . . . Ballistic Cannon 1 | . 1 . . . Launcher . | . . . . . Special Weapon 2 | . . . 1 1 Impact Weapon . | . . . . . Slashing Weapon . | . . . . . Piercing Weapon . | . . . . . Special Melee Weapon . | . . . . . Unidentified Prototypes . | . . . . . Parts Lost 7 | . . . . 7 Power 1 | . . . . 1 Propulsion 2 | . . . . 2 Utility 1 | . . . . 1 Weapon 3 | . . . . 3 Highest Loss Streak 5 | . . . . 5 To Critical Strikes . | . . . . . Average Backups 8 | 1 5 10 9 7 Power 1 | . 1 2 2 1 Propulsion 4 | . 2 5 5 4 Utility . | . . . . . Weapon 2 | . 1 3 2 . Tool/Special . | . . . . . Unused Backups 8 | . 1 . 2 5 Power 1 | . . . . 1 Propulsion 4 | . . . . 4 Utility . | . . . . . Weapon 3 | . 1 . 2 . Tool/Special . | . . . . . Average Slot Usage (%) 96 | . 99 100 100 78 Engine 13 | . 14 14 14 13 Leg 25 | . 28 28 24 20 Wheel 1 | . . . 3 3 Storage 20 | . 27 24 14 14 Protection 6 | . . 3 14 6 Ballistic Gun 11 | . 14 14 10 6 Ballistic Cannon 12 | . 10 14 14 6 Special Weapon 1 | . . . 3 3 Peak Build Rating 17 | 6 8 8 17 16 Average Rating 8 | 4 7 7 10 9 On Entrance 7 | . 6 8 8 17 Naked Turns . | . . . . . Heaviest Build 27 | 11 22 22 25 27 Greatest Support 23 | 20 20 20 20 23 Greatest Overweight (x) 2 | 2 1 1 1 1 Average Overweight (x) . | . . . . . Largest Inventory Capacity 10 | 8 10 10 10 10 Average Capacity 9 | 7 9 10 10 10 Most Carried 10 | 3 10 10 10 10 Average Carried 8 | 1 5 10 9 7 Final Capacity 10 | 8 10 10 10 10 Final Carried 10 | 3 10 10 9 5 Class Distribution -------------------- 100% | Mutant Dominant Class ---------------- Mutant | -10/Materials Mutant | -10/Mines Mutant | -10/Exiles Mutant | -9/Mines Resources | -11 -10 -10 -10 -9 ----------- Run | Yrd Mat Min Exi Min Matter Collected 490 | 211 78 41 . 160 Remotely . | . . . . . Salvage Created 138 | . 13 37 . 88 Parts 7 | . 1 2 . 4 Haulers Intercepted . | . . . . . Recyclers Shooed . | . . . . . Parts Field Recycled . | . . . . . Retrieved Matter . | . . . . . Parts Self-Destructed . | . . . . . Prevented . | . . . . . Kills | -11 -10 -10 -10 -9 ------- Run | Yrd Mat Min Exi Min Combat Hostiles Destroyed 7 | . . 1 . 6 Guns 1 | . . . . 1 Cannons 6 | . . 1 . 5 Classes Destroyed 4 | . 1 1 . 2 Watcher 1 | . 1 . . . Swarmer 1 | . . . . 1 Grunt 2 | . . 1 . 1 Assembled 4 | . . . . 4 Best Kill Streak 4 | . 1 1 . 4 Combat Bots Only 4 | . . 1 . 4 Max Kills in Single Turn 1 | . 1 1 . 1 Gunslinging . | . . . . . Exploded . | . . . . . Melee . | . . . . . Uniques/NPCs Destroyed . | . . . . . Combat | -11 -10 -10 -10 -9 -------- Run | Yrd Mat Min Exi Min Hostile Shots Fired 61 | . . 5 . 56 Missed 17 | . . 1 . 16 Hits 44 | . . 4 . 40 Melee 9 | . . . . 9 Projectile 35 | . . 4 . 31 AOE 13 | . . . . 13 Damage Taken 974 | . . 43 . 931 Core 268 | . . 11 . 257 Absorbed by Shields . | . . . . . Redirected to Shielding 32 | . . . . 32 Core Remaining (%) 100 | 100 . . . . Volleys Fired 37 | . 5 3 . 29 Largest 2 | . 2 2 . 2 Hottest 100 | . 50 50 . 100 Shots Fired 58 | . 10 6 . 42 Gun 17 | . 5 3 . 9 Cannon 35 | . 5 3 . 27 Launcher . | . . . . . Special 6 | . . . . 6 Kinetic 34 | . 10 6 . 18 Thermal 19 | . . . . 19 Explosive . | . . . . . Electromagnetic . | . . . . . Robot Hit Streak 19 | . 3 4 . 19 Robot Miss Streak 7 | . 7 2 . 3 Penetration Max . | . . . . . Secondary Targets . | . . . . . Shots Hit Robots 33 | . 3 4 . 26 Core Hits 15 | . 2 3 . 10 Critical Kills . | . . . . . Critical Parts Destroyed . | . . . . . Critical Strikes . | . . . . . Melee Attacks . | . . . . . Impact . | . . . . . Slashing . | . . . . . Piercing . | . . . . . Sneak Attacks . | . . . . . Combat Hostiles . | . . . . . Follow-up Attacks . | . . . . . Damage Inflicted 444 | . 41 52 . 351 Guns 87 | . 9 14 . 64 Cannons 333 | . 32 38 . 263 Explosions . | . . . . . Melee . | . . . . . Ramming . | . . . . . Kinetic 298 | . 41 52 . 205 Thermal 146 | . . . . 146 Explosive . | . . . . . Electromagnetic . | . . . . . Impact . | . . . . . Slashing . | . . . . . Piercing . | . . . . . Highest Corruption 5 | . . . . 5 Average Corruption 5 | . . . . 5 Corruption Purged . | . . . . . Corruption Blocked . | . . . . . Effects 1 | . . . . 1 Message Errors 1 | . . . . 1 Overload Shots . | . . . . . Overflow Damage . | . . . . . Projectiles . | . . . . . Explosions . | . . . . . Melee . | . . . . . Knockbacks 4 | . 1 1 . 2 Impact . | . . . . . Kinetic 4 | . 1 1 . 2 Secondary . | . . . . . Self-Inflicted Damage . | . . . . . Shots . | . . . . . Rammed . | . . . . . Targets Rammed . | . . . . . Kicked . | . . . . . Crushed . | . . . . . Highest Temperature 284 | . 20 16 . 284 Average Temperature 93 | . 9 12 . 111 Received Heat Transfer 84 | . . 24 . 60 Siege Activations . | . . . . . Martial Activations . | . . . . . Shielding Activations . | . . . . . Robots Disrupted . | . . . . . Combat Hostiles . | . . . . . Robots Corrupted . | . . . . . Combat Hostiles . | . . . . . Parts Fried . | . . . . . Impact Corruptions . | . . . . . Robots Melted . | . . . . . Combat Hostiles . | . . . . . Parts Melted . | . . . . . Heat Transferred 272 | . . . . 272 Parts Sabotaged . | . . . . . Parts Stolen . | . . . . . Parts Stripped . | . . . . . Power Chain Reactions . | . . . . . Alert | -11 -10 -10 -10 -9 ------- Run | Yrd Mat Min Exi Min Maximum Alert Level . | . . . . . Low Security (%) 100 | 100 100 100 . 100 Level 1 . | . . . . . Level 2 . | . . . . . Level 3 . | . . . . . Level 4 . | . . . . . Level 5 . | . . . . . High Security . | . . . . . Max Security . | . . . . . Peak Influence 100 | . 14 100 . 55 Initial . | . . . . . Average 13 | . . 24 . 14 Influence Increases 240 | . 29 110 . 101 Destroy 0b10 Robot/C 120 | . . 80 . 40 Destroy 0b10 Robot/NC 5 | . 5 . . . Destroy Leader 32 | . 2 10 . 20 Allied During Kill 5 | . . 5 . . Successful Hack 21 | . 21 . . . Destroy Structure 27 | . 1 . . 26 Lose Combat Pursuer 30 | . . 15 . 15 Influence Decreases 240 | . 29 110 . 101 Time Decay 189 | . 29 110 . 50 Lost Part 35 | . . . . 35 Lost Ally 16 | . . . . 16 Squads Dispatched 2 | . 1 1 . . Investigation . | . . . . . Extermination . | . . . . . Reinforcement 1 | . 1 . . . Assault 1 | . . 1 . . Garrison . | . . . . . Intercept . | . . . . . Searches Triggered . | . . . . . Construction Impeded . | . . . . . Haulers Reinforced . | . . . . . Active Scanning Responses . | . . . . . Cargo Convoy Interrupts . | . . . . . Stealth | -11 -10 -10 -10 -9 --------- Run | Yrd Mat Min Exi Min Distress Signals . | . . . . . Communications Jammed . | . . . . . Distress Signals . | . . . . . Times Spotted 24 | . 2 1 1 20 Peak Tracking Total 12 | . 1 4 1 12 Tactical Retreats 3 | . . 1 . 2 Traps | -11 -10 -10 -10 -9 ------- Run | Yrd Mat Min Exi Min Traps Triggered . | . . . . . Indirectly . | . . . . . Trap Hack Attempts . | . . . . . Triggered . | . . . . . Disarmed . | . . . . . Reprogrammed . | . . . . . Reused . | . . . . . Traps Extracted . | . . . . . Installed . | . . . . . Triggered . | . . . . . Machines | -11 -10 -10 -10 -9 ---------- Run | Yrd Mat Min Exi Min Machines Disabled . | . . . . . Max in Single Turn . | . . . . . Machines Repaired . | . . . . . Machines Dismantled . | . . . . . Machines Sabotaged . | . . . . . Overloaded Fab Kills . | . . . . . Hacking | -11 -10 -10 -10 -9 --------- Run | Yrd Mat Min Exi Min Machines Accessed 7 | . 2 . 5 . Terminals 2 | . 2 . . . Fabricators . | . . . . . Repair Stations . | . . . . . Recycling Units . | . . . . . Scanalyzers . | . . . . . Garrison Access . | . . . . . Total Hacks 54 | . 4 . 50 . Successful 52 | . 2 . 50 . Failed 2 | . 2 . . . Catastrophic . | . . . . . Database Lockouts . | . . . . . Manual 3 | . . . 3 . Terminals 4 | . 4 . . . Fabricators . | . . . . . Repair Stations . | . . . . . Recycling Units . | . . . . . Scanalyzers . | . . . . . Garrison Access . | . . . . . Terminal Hacks 52 | . 2 . 50 . Record 49 | . . . 49 . Dispatch Records 1 | . 1 . . . Patrol Status 1 | . 1 . . . Proto ID Catalog 1 | . . . 1 . Fabricator Hacks . | . . . . . Repair Station Hacks . | . . . . . Recycling Unit Hacks . | . . . . . Scanalyzer . | . . . . . Garrison Access Hacks . | . . . . . Unauthorized Hacks . | . . . . . Terminals . | . . . . . Fabricators . | . . . . . Repair Stations . | . . . . . Recycling Units . | . . . . . Scanalyzers . | . . . . . Garrison Access . | . . . . . Data Cores Recovered . | . . . . . Used . | . . . . . Hacking Detections 2 | . 2 . . . Full Trace Events . | . . . . . Feedback Events . | . . . . . Feedback Blocked . | . . . . . Robot Schematics Acquired . | . . . . . Robots Built . | . . . . . Authchips . | . . . . . Time . | . . . . . Total Robot Build Rating . | . . . . . Part Schematics Acquired . | . . . . . Parts Built . | . . . . . Authchips . | . . . . . Time . | . . . . . Total Part Build Rating . | . . . . . Parts Repaired . | . . . . . Time . | . . . . . Parts Recycled . | . . . . . Recycled Matter . | . . . . . Retrieved Matter . | . . . . . Retrieved Components . | . . . . . Parts Scanalyzed . | . . . . . Part Schematics Acquired . | . . . . . Parts Damaged . | . . . . . Bothacking | -11 -10 -10 -10 -9 ------------ Run | Yrd Mat Min Exi Min Used RIF Installer . | . . . . . Robots Hacked . | . . . . . Non-combat . | . . . . . Combat . | . . . . . Robot Hacks Applied . | . . . . . Relay Couplers Released . | . . . . . Fabnet Peak Effective % . | . . . . . Robots Rewired . | . . . . . Allies Hacked . | . . . . . Hacks Repelled . | . . . . . Allies | -11 -10 -10 -10 -9 -------- Run | Yrd Mat Min Exi Min Total Allies 4 | . . 1 . 3 Largest Group 2 | . . 1 1 2 Highest-Rated Group 34 | . . 31 31 34 Highest-Rated Ally 34 | . . 31 31 34 Total Orders 3 | . . . . 3 ROAM 1 | . . . . 1 GUARD 1 | . . . . 1 AID 1 | . . . . 1 Ally Attacks 29 | . . 15 3 11 Total Damage 640 | . . 205 43 392 Kills 10 | . . 3 . 7 Allies Corrupted . | . . . . . Allies Melted . | . . . . . Field Lobotomies 3 | . . . . 3 Intel | -11 -10 -10 -10 -9 ------- Run | Yrd Mat Min Exi Min Active Infowar (turns) . | . . . . . Robot Analysis Total . | . . . . . Derelict Logs Recovered 1 | . . 1 . . Drone Launches . | . . . . . Drone Recoveries . | . . . . . Exploration | -11 -10 -10 -10 -9 ------------- Run | Yrd Mat Min Exi Min Turns Passed 1634 | 62 339 446 563 224 Spaces Moved 1037 | 45 167 255 461 109 Core 10 | 10 . . . . Treads . | . . . . . Legs 897 | 35 167 255 349 91 Wheels 130 | . . . 112 18 Hover . | . . . . . Flight . | . . . . . Fastest Speed 50 | 50 120 120 100 115 Average Speed 141 | 113 187 168 118 119 Slowest Speed 190 | 190 190 190 120 120 Overloaded Moves . | . . . . . Propulsion Burnouts . | . . . . . Robots Hopped . | . . . . . Potential Cave-ins . | . . . . . Cave-ins Triggered . | . . . . . Exploration Rate (%) 33 | 3 29 47 72 15 Regions Visited 4 Branch Regions 3 Pre-discovered Areas 1 | . . . 1 . Known Exits Taken . | . . . . . Unknown Exits Taken 4 | 1 1 1 1 . Scrap Searched 3 | . . 2 . 1 Spaces Dug . | . . . . . Terrain Destroyed 4 | . . . . 4 Melee . | . . . . . Projectile 4 | . . . . 4 AOE . | . . . . . Terrain Rammed . | . . . . . Walls Destroyed . | . . . . . Machines Disabled . | . . . . . Actions | -11 -10 -10 -10 -9 --------- Run | Yrd Mat Min Exi Min Total 1135 | 53 184 267 475 156 Wait 18 | . . 8 4 6 Move 1033 | 44 166 254 460 109 Hop . | . . . . . Pick Up 13 | 3 9 . . 1 Fast Attach 9 | 6 1 1 1 . Attach 6 | . . . . 6 Detach 2 | . . . 1 1 Swap 9 | . 1 . 5 3 Drop 6 | . 2 1 2 1 Fire 37 | . 5 3 . 29 Melee . | . . . . . Ram . | . . . . . Kick . | . . . . . Crush . | . . . . . Escape Stasis . | . . . . . Rewire 2 | . . . 2 . Trap . | . . . . . Miscellaneous . | . . . . . Route ------- -11/Scrapyard -10/Materials -10/Mines -10/Exiles (discovered 2 exits: [*Min x2]) -9/Mines History --------- Turn | Location | Event 17 | -11/Scrapyard | Discovered new exit (range 15) 63 | -11/Scrapyard | Entered Materials 313 | -10/Materials | Build established: Mutant 365 | -10/Materials | Discovered new exit (range 14) 402 | -10/Materials | Entered Mines 403 | -10/Mines | Met a Derelict testing a Signal Generator 679 | -10/Mines | Received a Rocket Launcher from a helpful Derelict 739 | -10/Mines | Learned 8 Materials zone layouts 835 | -10/Mines | Deemed a non-threat by the Exiles lab entrance 835 | -10/Mines | Discovered new exit (range 5) 848 | -10/Mines | Entered Exiles 848 | -10/Exiles | Accompanied by 1 ally 865 | -10/Exiles | Discovered new exit (range 15) 878 | -10/Exiles | Met 8R-AWN 904 | -10/Exiles | Met EX-HEX 1006 | -10/Exiles | Met EX-DEC 1064 | -10/Exiles | Met EX-BIN 1114 | -10/Exiles | Aligned with FarCom system 1116 | -10/Exiles | Given EX-Vault access code 1191 | -10/Exiles | Opened EX-Vault 1202 | -10/Exiles | Found Field Lobotomy Kit 1234 | -10/Exiles | Warned to stay clear of 0b10 Research branches 1247 | -10/Exiles | Exiles lab attacked by MAIN.C 1349 | -10/Exiles | Lost 3 allies 1364 | -10/Exiles | Learned location of Zion (-6) 1400 | -10/Exiles | Discovered new exit (range 11) 1411 | -10/Exiles | Left Exiles lab with Field Lobotomy Kit 1411 | -10/Exiles | Entered Mines 1460 | -9/Mines | Assembled infested the area 1465 | -9/Mines | Assisted by a Guerilla fighting off Assembled 1515 | -9/Mines | Assimilated D-53 Grenadier with FLK Orb 1544 | -9/Mines | Lost 5 parts (1p1u3w) 1581 | -9/Mines | Core integrity fell below 50% 1593 | -9/Mines | Core integrity fell below 20% 1596 | -9/Mines | Assimilated as-28457 with FLK Orb 1611 | -9/Mines | Assimilated G-34 Mercenary with FLK Orb 1635 | -9/Mines | Destroyed by as-91832 with Assembled Blade Last Messages --------------- 01601_ U-05 Engineer builds a Wall. 01605_ Acquired 15 matter. 01605_ U-05 Engineer builds a Wall. 01606_ Acquired 19 matter. 01609_ U-05 Engineer lays Concrete. 01611_ G-34 Mercenary assimilated. 01612_ U-05 Engineer builds a Wall. 01614_ The unstable cave ceiling collapses. 01616_ U-05 Engineer builds a Wall. 01619_ Acquired 1 matter. 01620_ Acquired 2 matter. 01621_ AR9QEG&XVBAKQ7IA0,MS5TP1 01624_ as-28457 destroyed. 01625_ The unstable cave ceiling collapses. 01626_ U-05 Engineer lays Concrete. 01628_ U-05 Engineer builds a Wall. 01630_ Mercenary 2a destroyed. 01630_ Field Lobotomy Kit expended. 01632_ U-05 Engineer lays Concrete. 01633_ U-05 Engineer builds a Wall. Map ----- +----------------------------------------------------+ | ??????????????????????????#?#???????????? | | ???????????????????????#### ## ????????? | | ???????????????????????? ????????? | | ????????????????????????? """????????? | | ?????????????????????????? """????????? | | ??????????????????????????? """????????? | | ???????????????????????????? " ????????? | | ?????????????????????????????"%#????????? | | ?## ?????????????????????????#"####?????? | | ?# ?????????????????######?#== ##????? | | ?? ????????????????## ###=% ##???? | | ??# ???????????????# =%=[! [ #???? | | ??# #??????????????# = = % #???? | | ??# ?????????????## ##* ##???? | | ??# < ???????????## #### ##????? | | ???# ???????????# ##?## #?????? | | ???## ??????????# ###### ##?????? | | ???# ??????????# #?####??????? | | ???# # % ?##??????## ## #???????????? | | ????# %## ##?????###### ##??????????? | | ????# # % # #??????????# ##?????????? | | ?????# % ####??????## #?????????? | | ?????# * ######## #?????????? | | ?????### !% #?????????? | | ???????## #= a ##### ## #?????????? | | ????????### @###??# ### ##?????????? | | ?????????## ##?# #?####??????????? | | ?????????#### # # #### #???????????????? | | ???????# # ###u # ## #???????????????? | | ????????# ####### #???????????????? | | ????????# ### #???????????????? | | ????????# ####### ### #???????????????? | | ????????#### ## # #???????????????? | | ?????????## #### #???????????????? | | ??????????### # ###? ????????????????? | | ????????????########??? ????????????????? | | ??????????????????????? ????????????????? | | ???????????????????????#????????????????? | | ????????????????????????????????????????? | | ????????????????????????????????????????? | | ????????????????????????????????????????? | | ????????????????????????????????????????? | | ????????????????????????????????????????? | | ????????????????????????????????????????? | | ????????????????????????????????????????? | | ????????????????????????????????????????? | | ????????????????????????????????????????? | | ????????????????????????????????????????? | | ????????????????????????????????????????? | | ????????????????????????????????????????? | +----------------------------------------------------+ Best States ------------- Heat Dissipation 25 Energy Generation 10 Energy Capacity 250 Matter Stores 300 Matter Capacity 300 Sight Range 16 Terrain Scan Density 10 Propulsion Shielding 33 Evasion (%) 55 Item Schematics ----------------- None Robot Schematics ------------------ None Fabricated ------------ Nothing Repaired ---------- Nothing Alien Tech Used ----------------- None Achievements -------------- None Challenges ------------ None Game ------ Seed ChainDisintegrationDeflector Manual? 0 Play Time 00:39:12 Cumulative 52.3 hours Start 2025.06.07 @ 22:53:56 End 2025.06.07 @ 23:41:00 Sessions 1 Manual Loads 0 Difficulty Rogue Special Mode None Game No. 49 Rogue 49 Adventurer 0 Explorer 0 Win Type - Total 0 Types 0/0/0/0/0/0/0/0/0/0 Lore% 27 Gallery% 32 Achievement% 30 Wizard Run 0 Options --------- Layout 1 ASCII 1 Keyboard 0 Movement Numpad Keybinds 0 Fullscreen 1 Font 24/Smallcaps Map View 50x35 Zoom Use 0% Tactical HUD 1 Map Filters NONE Filters NONE Steam 1 RUN: be55fc49-73d3-4d8b-b31d-5302127955bd